fUST/lending_fUST_20251001
["ID","MTS","AMOUNT","RATE_DAILY","PERIOD"]
[388651688,1759300248268,-500.0,0.00020476,2]
[388651689,1759300248278,-481.57754388,0.00020476,2]
[388651690,1759300248288,-487.96208896,0.00020476,2]
[388651691,1759300248298,-352.53287625,0.00020476,2]
[388651692,1759300248307,-500.0,0.00020476,2]
[388651693,1759300248318,-481.87228907,0.00020476,2]
[388651694,1759300248328,-500.0,0.00020476,2]
[388651695,1759300248338,-1010.17160294,0.00020476,2]
[388651696,1759300248348,-500.0,0.00020476,2]
[388651697,1759300248358,-500.0,0.00020476,2]
[388651698,1759300248368,-500.0,0.00020476,2]
[388651699,1759300248378,-500.0,0.00020476,2]
[388651700,1759300248388,-500.0,0.00020476,2]
[388651701,1759300248397,-500.0,0.00020476,2]
[388651702,1759300248407,-500.0,0.00020476,2]
[388651703,1759300248416,-500.0,0.00020476,2]
[388651704,1759300248426,-500.0,0.00020476,2]
[388651705,1759300248436,-500.0,0.00020476,2]
[388651706,1759300248445,-500.0,0.00020476,2]
[388651707,1759300248454,-500.0,0.00020476,2]
[388651708,1759300248464,-500.0,0.00020476,2]
[388651709,1759300248474,-500.0,0.00020476,2]
[388651710,1759300248483,-500.0,0.00020476,2]
[388651711,1759300248492,-500.0,0.00020476,2]
[388651712,1759300248502,-500.0,0.00020476,2]
[388651713,1759300248512,-500.0,0.00020476,2]
[388651714,1759300248522,-500.0,0.00020476,2]
[388651715,1759300248532,-500.0,0.00020476,2]
[388651716,1759300248541,-485.24736511,0.00020476,2]
[388651717,1759300248550,-500.0,0.00020476,2]
[388651718,1759300248559,-500.0,0.00020476,2]
[388651719,1759300248569,-360.81994033,0.00020476,2]
[388651720,1759300248578,-500.0,0.00020476,2]
[388651721,1759300248588,-500.0,0.00020476,2]
[388651722,1759300248597,-500.0,0.00020476,2]
[388651723,1759300248607,-500.0,0.00020476,2]
[388651724,1759300248617,-500.0,0.00020476,2]
[388651725,1759300248626,-500.0,0.00020476,2]
[388651726,1759300248636,-500.0,0.00020476,2]
[388651727,1759300248646,-603.95809957,0.00020476,2]
[388651728,1759300248655,-482.76775611,0.00020476,2]
[388651729,1759300248664,-500.0,0.00020476,2]
[388651730,1759300248674,-482.47440965,0.00020476,2]
[388651731,1759300248683,-500.0,0.00020476,2]
[388651732,1759300248692,-1778.41,0.00020476,2]
[388651733,1759300248702,-500.0,0.00020476,2]
[388651734,1759300248711,-500.0,0.00020476,2]
[388651735,1759300248721,-482.20273478,0.00020476,2]
[388651736,1759300248736,-500.0,0.00020476,2]
[388651737,1759300248746,-500.0,0.00020476,2]
[388651738,1759300248755,-561.04146903,0.00020476,2]
[388651739,1759300248765,-500.0,0.00020476,2]
[388651740,1759300248775,-500.0,0.00020476,2]
[388651741,1759300248883,-482.93280718,0.00020476,2]
[388651742,1759300248892,-482.30528913,0.00020476,2]
[388651743,1759300248902,-500.0,0.00020476,2]
[388651744,1759300248912,-500.0,0.00020476,2]
[388651745,1759300248922,-500.0,0.00020476,2]
[388651746,1759300248932,-500.0,0.00020476,2]
[388651747,1759300248941,-445.7533544,0.00020476,2]
[388651748,1759300248950,-484.75411977,0.00020476,2]
[388651749,1759300248959,-500.0,0.00020476,2]
[388651750,1759300248969,-483.56531508,0.00020476,2]
[388651751,1759300248978,-500.0,0.00020476,2]
[388651752,1759300248987,-500.0,0.00020476,2]
[388651753,1759300248997,-500.0,0.00020476,2]
[388651754,1759300249007,-483.15979497,0.00020476,2]
[388651755,1759300249016,-481.83228989,0.00020476,2]
[388651756,1759300249025,-482.84947016,0.00020476,2]
[388651757,1759300249035,-600.2,0.00020476,2]
[388651758,1759300249044,-679.62,0.00020476,2]
[388651759,1759300249053,-500.0,0.00020476,2]
[388651760,1759300249062,-500.0,0.00020476,2]
[388651761,1759300249072,-733.7,0.00020476,2]
[388651762,1759300249083,-483.01847122,0.00020476,2]
[388651763,1759300249092,-500.0,0.00020476,2]
[388651764,1759300249103,-500.0,0.00020476,2]
[388651765,1759300249112,-500.0,0.00020476,2]
[388651766,1759300249122,-800.55,0.00020476,2]
[388651767,1759300249131,-2172.05,0.00020476,2]
[388651768,1759300249140,-500.0,0.00020476,2]
[388651769,1759300249149,-483.26986576,0.00020476,2]
[388651770,1759300249158,-500.0,0.00020476,2]
[388651771,1759300249167,-500.0,0.00020476,2]
[388651772,1759300249177,-500.0,0.00020476,2]
[388651773,1759300249186,-500.0,0.00020476,2]
[388651774,1759300249196,-500.0,0.00020476,2]
[388651775,1759300249205,-500.0,0.00020476,2]
[388651776,1759300249215,-500.0,0.00020476,2]
[388651777,1759300249225,-770.05,0.00020476,2]
[388651778,1759300249236,-500.0,0.00020476,2]
[388651779,1759300249247,-500.0,0.00020476,2]
[388651780,1759300249256,-500.0,0.00020476,2]
[388651781,1759300249266,-500.0,0.00020476,2]
[388651782,1759300249276,-500.0,0.00020476,2]
[388651783,1759300249285,-500.0,0.00020476,2]
[388651784,1759300249296,-500.0,0.00020476,2]
[388651785,1759300249305,-527.39,0.00020476,2]
[388651786,1759300249315,-610.31,0.00020476,2]
[388651787,1759300249325,-578.69,0.00020476,2]
[388651788,1759300249334,-483.68459785,0.00020476,2]
[388651789,1759300249343,-500.0,0.00020476,2]
[388651790,1759300249352,-485.62624292,0.00020476,2]
[388651791,1759300249362,-500.0,0.00020476,2]
[388651792,1759300249371,-500.0,0.00020476,2]
[388651793,1759300249382,-483.28352723,0.00020476,2]
[388651794,1759300249391,-500.0,0.00020476,2]
[388651795,1759300249402,-465.66979037,0.00020476,2]
[388651796,1759300249411,-500.65,0.00020476,2]
[388651797,1759300249420,-996.5,0.00020476,2]
[388651798,1759300249430,-500.0,0.00020476,2]
[388651799,1759300249439,-2452.77,0.00020477,2]
[388651800,1759300249448,-2452.77,0.00020477,2]
[388651801,1759300249457,-2452.77,0.00020477,2]
[388651802,1759300249466,-2452.77,0.00020477,2]
[388651803,1759300249476,-2452.77,0.00020477,2]
[388651804,1759300249486,-2452.77,0.00020477,2]
[388651805,1759300249495,-2452.77,0.00020477,2]
[388651806,1759300249504,-2452.77,0.00020477,2]
[388651807,1759300249513,-2452.77,0.00020478,2]
[388651808,1759300249523,-2452.77,0.00020479,2]
[388651809,1759300249532,-405.42,0.00020482,2]
[388651810,1759300249542,-151.0,0.000205,3]
[388651811,1759300249551,-151.0,0.000205,4]
[388651812,1759300249560,-151.0,0.000205,3]
[388651813,1759300249570,-151.0,0.000205,3]
[388651814,1759300249579,-151.0,0.000205,4]
[388651815,1759300249589,-151.0,0.000205,4]
[388651816,1759300249599,-344.03907221,0.00020521,2]
[388651817,1759300249609,-518.64568241,0.00020521,2]
[388651818,1759300249618,-1000.0,0.00020521,2]
[388651819,1759300249627,-1000.0,0.00020521,2]
[388651820,1759300249637,-365.78137718,0.00020521,2]
[388651821,1759300249646,-151.0,0.00020535,2]
[388651822,1759300249655,-500.0,0.00020541,2]
[388651823,1759300249664,-500.0,0.00020541,2]
[388651824,1759300249673,-500.0,0.00020541,2]
[388651825,1759300249683,-500.0,0.00020541,2]
[388651826,1759300249694,-500.0,0.00020541,2]
[388651827,1759300249704,-500.0,0.00020543,2]
[388651828,1759300249714,-500.0,0.00020543,2]
[388651829,1759300249724,-500.0,0.00020543,2]
[388651830,1759300249738,-633.83,0.00020543,2]
[388651831,1759300249747,-500.0,0.00020543,2]
[388651832,1759300249757,-1834.41,0.00020543,2]
[388651833,1759300249767,-2584.74,0.00020543,2]
[388651834,1759300249777,-500.0,0.00020543,2]
[388651835,1759300249787,-445.84082164,0.00020543,2]
[388651836,1759300249801,-462.81488808,0.00020543,2]
[388651837,1759300249813,-500.0,0.00020543,2]
[388651838,1759300249823,-500.0,0.00020543,2]
[388651839,1759300249832,-3037.8,0.00020543,2]
[388651840,1759300249842,-1577.62,0.00020543,2]
[388651841,1759300249852,-1290.34,0.00020543,2]
[388651842,1759300249861,-990.8,0.00020543,2]
[388651843,1759300249871,-606.82,0.00020543,2]
[388651844,1759300249880,-624.91,0.00020543,2]
[388651845,1759300249890,-2838.9,0.00020543,2]
[388651846,1759300249900,-500.0,0.00020543,2]
[388651847,1759300249909,-500.0,0.00020543,2]
[388651848,1759300249919,-268.06805424,0.00020543,2]
[388651849,1759300249929,-500.0,0.00020543,2]
[388651850,1759300249938,-2208.54,0.00020543,2]
[388651851,1759300249948,-500.0,0.00020544,2]
[388651852,1759300249958,-976.71,0.00020544,2]
[388651853,1759300249968,-500.0,0.00020544,2]
[388651854,1759300249978,-500.0,0.00020544,2]
[388651855,1759300249987,-500.0,0.00020544,2]
[388651856,1759300249996,-500.0,0.00020544,2]
[388651857,1759300250006,-500.0,0.00020544,2]
[388651858,1759300250016,-532.24,0.00020544,2]
[388651859,1759300250026,-696.54,0.00020544,2]
[388651860,1759300250036,-599.84,0.00020544,2]
[388651861,1759300250047,-500.0,0.00020544,2]
[388651862,1759300250058,-500.0,0.00020544,2]
[388651863,1759300250068,-1595.27,0.00020544,2]
[388651864,1759300250161,-1044.96,0.00020544,2]
[388651865,1759300250171,-816.6,0.00020544,2]
[388651866,1759300250180,-500.0,0.00020544,2]
[388651867,1759300250189,-500.0,0.00020544,2]
[388651868,1759300250199,-2133.99,0.00020544,2]
[388651869,1759300250208,-790.26,0.00020544,2]
[388651870,1759300250218,-500.0,0.00020544,2]
[388651871,1759300250228,-500.0,0.00020544,2]
[388651872,1759300250237,-1073.26,0.00020544,2]
[388651873,1759300250246,-2985.05,0.00020544,2]
[388651874,1759300250255,-1203.65,0.00020544,2]
[388651875,1759300250265,-500.0,0.00020544,2]
[388651876,1759300250275,-1345.4,0.00020544,2]
[388651877,1759300250284,-1844.27,0.00020544,2]
[388651878,1759300250295,-744.0,0.00020544,2]
[388651879,1759300250304,-500.0,0.00020544,2]
[388651880,1759300250314,-2722.47,0.00020544,2]
[388651881,1759300250323,-704.37,0.00020544,2]
[388651882,1759300250332,-643.28,0.00020544,2]
[388651883,1759300250343,-2310.74,0.00020544,2]
[388651884,1759300250352,-500.0,0.00020544,2]
[388651885,1759300250362,-588.85,0.00020544,2]
[388651886,1759300250371,-591.97,0.00020544,2]
[388651887,1759300250380,-738.55,0.00020544,2]
[388651888,1759300250390,-1055.04,0.00020544,2]
[388651889,1759300250400,-860.04,0.00020544,2]
[388651890,1759300250411,-500.0,0.00020544,2]
[388651891,1759300250420,-500.0,0.00020544,2]
[388651892,1759300250429,-417.56699925,0.00020544,2]
[388651893,1759300250439,-2129.67,0.00020544,2]
[388651894,1759300250448,-594.42,0.00020544,2]
[388651895,1759300250458,-500.0,0.00020544,2]
[388651896,1759300250468,-1943.54,0.00020544,2]
[388651897,1759300250478,-3021.33,0.00020544,2]
[388651898,1759300250488,-542.34,0.00020544,2]
[388651899,1759300250498,-500.0,0.00020545,2]
[388651900,1759300250508,-500.0,0.00020545,2]
[388651901,1759300250517,-197.25332657,0.00020545,2]
[388651902,1759300250527,-500.0,0.00020545,2]
[388651903,1759300250537,-500.0,0.00020545,2]
[388651904,1759300250546,-500.0,0.00020545,2]
[388651905,1759300250555,-500.0,0.00020545,2]
[388651906,1759300250565,-500.0,0.00020545,2]
[388651907,1759300250574,-500.0,0.00020545,2]
[388651908,1759300250584,-1326.54,0.00020545,2]
[388651909,1759300250593,-500.0,0.00020545,2]
[388651910,1759300250603,-500.0,0.00020545,2]
[388651911,1759300250613,-447.71448699,0.00020545,2]
[388651912,1759300250622,-1228.09,0.00020545,2]
[388651913,1759300250632,-523.58,0.00020545,2]
[388651914,1759300250641,-503.71,0.00020545,2]
[388651915,1759300250651,-500.0,0.00020545,2]
[388651916,1759300250660,-378.27320378,0.00020545,2]
[388651917,1759300250669,-655.06,0.00020545,2]
[388651918,1759300250679,-447.29288696,0.00020545,2]
[388651919,1759300250688,-500.0,0.00020545,2]
[388651920,1759300250697,-500.0,0.00020545,2]
[388651921,1759300250706,-1189.11,0.00020545,2]
[388651922,1759300250727,-1363.71,0.00020545,2]
[388651923,1759300250745,-509.24,0.00020545,2]
[388651924,1759300250766,-500.0,0.00020545,2]
[388651925,1759300250787,-500.0,0.00020545,2]
[388651926,1759300250802,-600.5,0.00020545,2]
[388651927,1759300250823,-616.41,0.00020545,2]
[388651928,1759300250843,-500.0,0.00020545,2]
[388651929,1759300250863,-1174.06,0.00020545,2]
[388651930,1759300250883,-500.0,0.00020545,2]
[388651931,1759300250900,-775.36,0.00020545,2]
[388651932,1759300250919,-500.0,0.00020545,2]
[388651933,1759300250935,-900.61,0.00020545,2]
[388651934,1759300250949,-767.43,0.00020545,2]
[388651935,1759300250966,-500.0,0.00020545,2]
[388651936,1759300250979,-775.18,0.00020545,2]
[388651937,1759300250994,-558.56,0.00020545,2]
[388651938,1759300251008,-709.03,0.00020545,2]
[388651939,1759300251024,-609.6,0.00020545,2]
[388651940,1759300251039,-556.02,0.00020545,2]
[388651941,1759300251056,-814.04,0.00020545,2]
[388651942,1759300251070,-1000.92,0.00020545,2]
[388651943,1759300251085,-1230.23,0.00020545,2]
[388651944,1759300251100,-500.0,0.00020545,2]
[388651945,1759300251116,-1305.99,0.00020545,2]
[388651946,1759300251130,-694.39,0.00020545,2]
[388651947,1759300251145,-555.89,0.00020545,2]
[388651948,1759300251158,-512.35,0.00020545,2]
[388651949,1759300251173,-500.0,0.00020545,2]
[388651950,1759300251186,-848.29,0.00020545,2]
[388651951,1759300251201,-2483.05,0.00020545,2]
[388651952,1759300251217,-500.0,0.00020545,2]
[388651953,1759300251232,-500.0,0.00020545,2]
[388651954,1759300251247,-1323.84,0.00020545,2]
[388651955,1759300251261,-1221.22,0.00020545,2]
[388651956,1759300251276,-1683.66,0.00020545,2]
[388651957,1759300251290,-500.0,0.00020545,2]
[388651958,1759300251305,-893.56,0.00020545,2]
[388651959,1759300251320,-1673.81,0.00020545,2]
[388651960,1759300251334,-445.82482971,0.00020545,2]
[388651961,1759300251349,-1460.82,0.00020545,2]
[388651962,1759300251366,-847.13,0.00020545,2]
[388651963,1759300251381,-500.0,0.00020545,2]
[388651964,1759300251397,-500.0,0.00020545,2]
[388651965,1759300251410,-500.0,0.00020545,2]
[388651966,1759300251425,-2814.77,0.00020545,2]
[388651967,1759300251439,-500.0,0.00020545,2]
[388651968,1759300251453,-448.34085956,0.00020545,2]
[388651969,1759300251467,-500.0,0.00020545,2]
[388651970,1759300251484,-500.0,0.00020545,2]
[388651971,1759300251498,-494.44244619,0.00020545,2]
[388651972,1759300251512,-816.61,0.00020545,2]
[388651973,1759300251527,-649.89,0.00020545,2]
[388651974,1759300251540,-500.0,0.00020545,2]
[388651975,1759300251554,-1006.68,0.00020545,2]
[388651976,1759300251568,-151.0,0.00020546,2]
[388651977,1759300251581,-259.13971485,0.00020546,2]
[388651978,1759300251711,-439.0,0.00020546,2]
[388651979,1759300251726,-245.0,0.00020546,2]
[388651980,1759300251743,-151.0,0.00020546,2]
[388651981,1759300251752,-500.0,0.00020546,2]
[388651982,1759300251761,-3416.19,0.00020546,2]
[388651983,1759300251771,-943.13,0.00020546,2]
[388651984,1759300251780,-500.0,0.00020546,2]
[388651985,1759300251789,-546.02,0.00020546,2]
[388651986,1759300251798,-446.268202,0.00020546,2]
[388651987,1759300251809,-500.0,0.00020546,2]
[388651988,1759300251819,-500.0,0.00020546,2]
[388651989,1759300251828,-500.0,0.00020546,2]
[388651990,1759300251839,-1377.23,0.00020546,2]
[388651991,1759300251848,-500.0,0.00020546,2]
[388651992,1759300251857,-500.0,0.00020546,2]
[388651993,1759300251867,-659.67,0.00020546,2]
[388651994,1759300251876,-830.66,0.00020546,2]
[388651995,1759300251885,-500.0,0.00020546,2]
[388651996,1759300251895,-764.52,0.00020546,2]
[388651997,1759300251905,-500.0,0.00020546,2]
[388651998,1759300251914,-2452.77,0.00020546,2]
[388651999,1759300251923,-500.0,0.00020546,2]
[388652000,1759300251932,-501.81,0.00020546,2]
[388652001,1759300251942,-500.0,0.00020546,2]
[388652002,1759300251951,-736.74,0.00020546,2]
[388652003,1759300251960,-500.0,0.00020546,2]
[388652004,1759300251969,-2706.95,0.00020546,2]
[388652005,1759300251978,-500.0,0.00020546,2]
[388652006,1759300251987,-598.42,0.00020546,2]
[388652007,1759300251997,-1415.76,0.00020546,2]
[388652008,1759300252006,-613.83,0.00020546,2]
[388652009,1759300252015,-500.0,0.00020546,2]
[388652010,1759300252024,-632.86,0.00020546,2]
[388652011,1759300252033,-1640.0,0.00020546,2]
[388652012,1759300252044,-500.0,0.00020546,2]
[388652013,1759300252054,-500.0,0.00020547,2]
[388652014,1759300252063,-246.14163582,0.00020547,2]
[388652015,1759300252073,-199.56748331,0.00020547,2]
[388652016,1759300252082,-451.2406212,0.00020547,2]
[388652017,1759300252091,-713.88,0.00020547,2]
[388652018,1759300252101,-500.0,0.00020547,2]
[388652019,1759300252110,-459.38114142,0.00020547,2]
[388652020,1759300252119,-500.0,0.00020547,2]
[388652021,1759300252128,-500.0,0.00020547,2]
[388652022,1759300252137,-500.0,0.00020547,2]
[388652023,1759300252147,-553.53,0.00020547,2]
[388652024,1759300252156,-447.25584273,0.00020547,2]
[388652025,1759300252166,-500.0,0.00020547,2]
[388652026,1759300252175,-515.74,0.00020547,2]
[388652027,1759300252185,-500.0,0.00020547,2]
[388652028,1759300252195,-500.0,0.00020547,2]
[388652029,1759300252204,-500.0,0.00020547,2]
[388652030,1759300252213,-500.0,0.00020547,2]
[388652031,1759300252222,-1250.0,0.00020547,2]
[388652032,1759300252232,-500.0,0.00020547,2]
[388652033,1759300252241,-513.86,0.00020547,2]
[388652034,1759300252250,-500.0,0.00020547,2]
[388652035,1759300252259,-500.0,0.00020547,2]
[388652036,1759300252269,-500.0,0.00020547,2]
[388652037,1759300252279,-561.73,0.00020547,2]
[388652038,1759300252288,-500.0,0.00020547,2]
[388652039,1759300252298,-500.0,0.00020547,2]
[388652040,1759300252307,-500.0,0.00020547,2]
[388652041,1759300252316,-366.81189949,0.00020547,2]
[388652042,1759300252325,-500.0,0.00020547,2]
[388652043,1759300252334,-500.0,0.00020547,2]
[388652044,1759300252343,-500.0,0.00020547,2]
[388652045,1759300252352,-500.0,0.00020547,2]
[388652046,1759300252361,-500.0,0.00020547,2]
[388652047,1759300252370,-500.0,0.00020547,2]
[388652048,1759300252380,-500.0,0.00020547,2]
[388652049,1759300252390,-500.0,0.00020547,2]
[388652050,1759300252400,-500.0,0.00020547,2]
[388652051,1759300252409,-534.37052141,0.00020547,2]
[388652052,1759300252418,-455.22077893,0.00020547,2]
[388652053,1759300252427,-500.0,0.00020547,2]
[388652054,1759300252436,-500.0,0.00020547,2]
[388652055,1759300252445,-500.0,0.00020547,2]
[388652056,1759300252454,-500.0,0.00020547,2]
[388652057,1759300252463,-500.0,0.00020547,2]
[388652058,1759300252473,-524.18,0.00020547,2]
[388652059,1759300252482,-500.0,0.00020547,2]
[388652060,1759300252491,-500.0,0.00020547,2]
[388652061,1759300252500,-500.0,0.00020547,2]
[388652062,1759300252510,-500.0,0.00020547,2]
[388652063,1759300252519,-500.0,0.00020547,2]
[388652064,1759300252529,-646.25,0.00020547,2]
[388652065,1759300252538,-539.33,0.00020547,2]
[388652066,1759300252547,-500.0,0.00020547,2]
[388652067,1759300252556,-657.79,0.00020547,2]
[388652068,1759300252565,-500.0,0.00020547,2]
[388652069,1759300252574,-500.0,0.00020547,2]
[388652070,1759300252583,-500.0,0.00020547,2]
[388652071,1759300252592,-1606.71,0.00020547,2]
[388652072,1759300252601,-500.0,0.00020547,2]
[388652073,1759300252611,-442.62535005,0.00020547,2]
[388652074,1759300252620,-500.0,0.00020547,2]
[388652075,1759300252629,-686.68,0.00020547,2]
[388652076,1759300252639,-2286.35,0.00020547,2]
[388652077,1759300252649,-1437.67,0.00020547,2]
[388652078,1759300252658,-500.0,0.00020547,2]
[388652079,1759300252667,-1047.18,0.00020547,2]
[388652080,1759300252676,-500.0,0.00020547,2]
[388652081,1759300252686,-1014.26,0.00020547,2]
[388652082,1759300252696,-500.0,0.00020547,2]
[388652083,1759300252705,-500.0,0.00020547,2]
[388652084,1759300252714,-512.98635521,0.00020547,2]
[388652085,1759300252723,-500.0,0.00020547,2]
[388652086,1759300252736,-2286.01,0.00020547,2]
[388652087,1759300252746,-500.0,0.00020547,2]
[388652088,1759300252755,-2031.62,0.00020547,2]
[388652089,1759300252764,-500.0,0.00020547,2]
[388652090,1759300252775,-500.0,0.00020547,2]
[388652091,1759300252785,-500.0,0.00020547,2]
[388652092,1759300252794,-215.1977842,0.00020547,2]
[388652093,1759300252806,-500.0,0.00020573,2]
[388652094,1759300252815,-500.0,0.00020573,2]
[388652095,1759300252825,-500.0,0.00020573,2]
[388652096,1759300252834,-500.0,0.00020573,2]
[388652097,1759300252843,-200.01019669,0.00020573,2]
[388652098,1759300252853,-501.8607107,0.00020573,2]
[388652099,1759300252862,-152.27091551,0.00020573,2]
[388652100,1759300252872,-487.30246011,0.00020573,2]
[388652101,1759300252881,-200.01019671,0.00020573,2]
[388652102,1759300252892,-500.0,0.00020573,2]
[388652103,1759300252902,-501.30909708,0.00020573,2]
[388652104,1759300252915,-501.33647194,0.00020573,2]
[388652105,1759300252924,-500.0,0.00020573,2]
[388652106,1759300252934,-500.0,0.00020573,2]
[388652107,1759300252944,-500.0,0.00020573,2]
[388652108,1759300252953,-500.0,0.00020573,2]
[388652109,1759300252963,-500.0,0.00020573,2]
[388652110,1759300252973,-500.0,0.00020573,2]
[388652111,1759300252982,-500.0,0.00020573,2]
[388652112,1759300252992,-500.0,0.00020573,2]
[388652113,1759300253001,-501.08474833,0.00020573,2]
[388652114,1759300253010,-500.0,0.00020573,2]
[388652115,1759300253019,-500.0,0.00020573,2]
[388652116,1759300253029,-510.02666263,0.00020573,2]
[388652117,1759300253038,-177.5413789,0.00020573,2]
[388652118,1759300253047,-500.0,0.00020573,2]
[388652119,1759300253057,-500.0,0.00020573,2]
[388652120,1759300253066,-500.0,0.00020573,2]
[388652121,1759300253076,-449.35517041,0.00020573,2]
[388652122,1759300253085,-200.01172182,0.00020573,2]
[388652123,1759300253095,-291.0232396,0.00020573,2]
[388652124,1759300253104,-150.40881481,0.00020573,2]
[388652125,1759300253114,-256.69308645,0.00020573,2]
[388652126,1759300253122,-500.0,0.00020573,2]
[388652127,1759300253132,-200.01019669,0.00020573,2]
[388652128,1759300253142,-200.01172182,0.00020573,2]
[388652129,1759300253151,-500.0,0.00020573,2]
[388652130,1759300253161,-500.0,0.00020573,2]
[388652131,1759300253170,-200.0117218,0.00020573,2]
[388652132,1759300253180,-500.0,0.00020573,2]
[388652133,1759300253189,-501.15990748,0.00020573,2]
[388652134,1759300253199,-500.0,0.00020573,2]
[388652135,1759300253209,-500.0,0.00020573,2]
[388652136,1759300253219,-536.43005649,0.00020573,2]
[388652137,1759300253228,-500.0,0.00020573,2]
[388652138,1759300253238,-163.77728714,0.00020573,2]
[388652139,1759300253247,-500.0,0.00020573,2]
[388652140,1759300253257,-500.0,0.00020573,2]
[388652141,1759300253265,-175.05517669,0.00020573,2]
[388652142,1759300253274,-500.0,0.00020573,2]
[388652143,1759300253283,-500.0,0.00020573,2]
[388652144,1759300253291,-500.0,0.00020573,2]
[388652145,1759300253303,-509.87750923,0.00020573,2]
[388652146,1759300253315,-500.0,0.00020573,2]
[388652147,1759300253418,-500.0,0.00020573,2]
[388652148,1759300253429,-500.60463537,0.00020573,2]
[388652149,1759300253437,-500.0,0.00020573,2]
[388652150,1759300253446,-500.0,0.00020573,2]
[388652151,1759300253454,-500.0,0.00020573,2]
[388652152,1759300253462,-500.0,0.00020573,2]
[388652153,1759300253471,-500.0,0.00020573,2]
[388652154,1759300253481,-500.0,0.00020573,2]
[388652155,1759300253490,-500.0,0.00020573,2]
[388652156,1759300253499,-330.0,0.0002059,2]
[388652157,1759300253508,-151.0,0.000206,4]
[388652158,1759300253518,-151.0,0.000206,3]
[388652159,1759300253528,-652.0,0.000206,2]
[388652160,1759300253538,-150.478038,0.000206,2]
[388652161,1759300253548,-500.0,0.00020616,2]
[388652162,1759300253558,-500.0,0.00020616,2]
[388652163,1759300253568,-500.0,0.00020616,2]
[388652164,1759300253578,-150.0,0.00020684,2]
[388652165,1759300253587,-300.0,0.00020684,2]
[388652166,1759300253597,-450.0,0.00020684,2]
[388652167,1759300253606,-600.0,0.00020684,2]
[388652168,1759300253615,-541.81976818,0.00020684,2]
[388652169,1759300253625,-151.0,0.000207,4]
[388652170,1759300253636,-151.0,0.000207,4]
[388652171,1759300253645,-151.0,0.000207,4]
[388652172,1759300253655,-151.0,0.000207,3]
[388652173,1759300253665,-151.0,0.000207,3]
[388652174,1759300253676,-500.0,0.0002075,2]
[388652175,1759300253686,-500.0,0.0002075,2]
[388652176,1759300253695,-520.0,0.0002075,3]
[388652177,1759300253704,-500.0,0.0002075,2]
[388652178,1759300253714,-500.0,0.0002075,2]
[388652179,1759300253724,-500.0,0.0002075,2]
[388652180,1759300253738,-500.0,0.0002075,2]
[388652181,1759300253747,-537.46958402,0.0002075,2]
[388652182,1759300253756,-500.0,0.0002075,2]
[388652183,1759300253767,-500.0,0.0002075,2]
[388652184,1759300253778,-500.0,0.0002075,2]
[388652185,1759300253788,-591.84,0.0002075,2]
[388652186,1759300253798,-813.58,0.0002075,2]
[388652187,1759300253811,-752.21,0.0002075,2]